fUSD/lending_fUSD_20240223
["ID","MTS","AMOUNT","RATE_DAILY","PERIOD"]
[315007592,1708727453694,-3760.95850385,0.00034322,6]
[315007593,1708727453703,-152.6064863,0.00034355,7]
[315007594,1708727453713,-157.51738774,0.00034467,7]
[315007595,1708727453722,-10989.640071,0.0003452,2]
[315007596,1708727453732,-309.352726,0.0003452,2]
[315007597,1708727453742,-1636.836948,0.0003452,2]
[315007598,1708727453751,-2084.88163,0.0003452,2]
[315007599,1708727453761,-954.774794,0.0003452,2]
[315007600,1708727453770,-1169.169249,0.0003452,2]
[315007601,1708727453781,-1667.905304,0.0003452,2]
[315007602,1708727453790,-763.819835,0.0003452,2]
[315007603,1708727453799,-4895.78,0.00034521,2]
[315007604,1708727453809,-150.0,0.00034607,2]
[315007605,1708727453818,-581.65,0.00034622,2]
[315007606,1708727453828,-204.0,0.00034702,8]
[315007607,1708727453837,-5881.83884464,0.00034746,2]
[315007608,1708727453846,-856.13982141,0.00034781,7]
[315007609,1708727453855,-16484.460107,0.00034794,2]
[315007610,1708727453864,-464.02909,0.00034794,2]
[315007611,1708727453873,-2455.255423,0.00034794,2]
[315007612,1708727453882,-3127.322445,0.00034794,2]
[315007613,1708727453892,-1432.162191,0.00034794,2]
[315007614,1708727453901,-1753.753873,0.00034794,2]
[315007615,1708727453910,-2501.857956,0.00034794,2]
[315007616,1708727453919,-1145.729753,0.00034794,2]
[315007617,1708727453928,-471.5836,0.00034795,2]
[315007618,1708727453937,-817.0,0.00034897,2]
[315007619,1708727453946,-682.65,0.000349,2]
[315007620,1708727453956,-754.75,0.000349,2]
[315007621,1708727453965,-754.75,0.000349,2]
[315007622,1708727453974,-754.75,0.000349,2]
[315007623,1708727453984,-754.75,0.000349,2]
[315007624,1708727453993,-754.75,0.000349,2]
[315007625,1708727454002,-754.75,0.000349,2]
[315007626,1708727454012,-754.75,0.000349,2]
[315007627,1708727454021,-754.75,0.000349,2]
[315007628,1708727454031,-754.75,0.000349,2]
[315007629,1708727454040,-754.75,0.000349,2]
[315007630,1708727454049,-754.75,0.000349,2]
[315007631,1708727454058,-754.75,0.000349,2]
[315007632,1708727454067,-754.75,0.000349,2]
[315007633,1708727454076,-754.75,0.000349,2]
[315007634,1708727454085,-754.75,0.000349,2]
[315007635,1708727454094,-754.75,0.000349,2]
[315007636,1708727454104,-754.75,0.000349,2]
[315007637,1708727454113,-754.75,0.000349,2]
[315007638,1708727454122,-754.75,0.000349,2]
[315007639,1708727454131,-754.75,0.000349,2]
[315007640,1708727454140,-21979.280143,0.00034931,2]
[315007641,1708727454150,-618.705453,0.00034931,2]
[315007642,1708727454159,-3273.673897,0.00034931,2]
[315007643,1708727454168,-4169.76326,0.00034931,2]
[315007644,1708727454177,-1909.549589,0.00034931,2]
[315007645,1708727454186,-2338.338498,0.00034931,2]
[315007646,1708727454195,-3335.810608,0.00034931,2]
[315007647,1708727454205,-1527.639671,0.00034931,2]
[315007648,1708727454214,-154.20563152,0.00034962,7]
[315007649,1708727454225,-151.0,0.00034965,7]
[315007650,1708727454237,-150.0,0.00034999,2]
[315007651,1708727454246,-150.0,0.00034999,2]
[315007652,1708727454256,-229.20433756,0.00035,7]
[315007653,1708727454265,-586.90975074,0.00035,4]
[315007654,1708727454276,-155.20925086,0.00035,4]
[315007655,1708727454285,-18747.05596188,0.00035,2]
[315007656,1708727454295,-1191902.93696373,0.00035,2]
[315007657,1708727454305,-152.6064863,0.00035048,7]
[315007658,1708727454314,-27474.100179,0.00035068,2]
[315007659,1708727454326,-773.381816,0.00035068,2]
[315007660,1708727454337,-4092.092371,0.00035068,2]
[315007661,1708727454347,-5212.204076,0.00035068,2]
[315007662,1708727454358,-2386.936986,0.00035068,2]
[315007663,1708727454368,-2922.923122,0.00035068,2]
[315007664,1708727454384,-4169.76326,0.00035068,2]
[315007665,1708727454397,-1909.549589,0.00035068,2]
[315007666,1708727454410,-4996.72,0.000351,2]
[315007667,1708727454423,-150.0,0.00035131,7]
[315007668,1708727454435,-150.61156201,0.00035183,7]
[315007669,1708727454445,-154.20563152,0.00035306,7]
[315007670,1708727454457,-189.92,0.00035316,2]
[315007671,1708727454470,-38463.740251,0.00035342,2]
[315007672,1708727454482,-1082.734543,0.00035342,2]
[315007673,1708727454494,-5728.92932,0.00035342,2]
[315007674,1708727454506,-7297.085706,0.00035342,2]
[315007675,1708727454519,-3341.711781,0.00035342,2]
[315007676,1708727454532,-4092.092371,0.00035342,2]
[315007677,1708727454544,-5837.668565,0.00035342,2]
[315007678,1708727454555,-2673.369424,0.00035342,2]
[315007679,1708727454565,-157.51738774,0.00035404,7]
[315007680,1708727454577,-153.50007698,0.00035419,7]
[315007681,1708727454588,-150.0,0.00035472,2]
[315007682,1708727454600,-157.51738774,0.00035507,7]
[315007683,1708727454611,-43958.560287,0.00035589,2]
[315007684,1708727454622,-1237.410906,0.00035589,2]
[315007685,1708727454635,-6547.347794,0.00035589,2]
[315007686,1708727454648,-8339.526521,0.00035589,2]
[315007687,1708727454661,-3819.099178,0.00035589,2]
[315007688,1708727454673,-4676.676996,0.00035589,2]
[315007689,1708727454684,-6671.621217,0.00035589,2]
[315007690,1708727454694,-3055.279342,0.00035589,2]
[315007691,1708727454708,-154.20563152,0.00035608,7]
[315007692,1708727454720,-150.52,0.00035616,2]
[315007693,1708727454731,-151.0,0.00035678,4]
[315007694,1708727454744,-3481.97,0.000357,7]
[315007695,1708727454756,-2700.05,0.000357,7]
[315007696,1708727454768,-3760.95850385,0.00035746,8]
[315007697,1708727454779,-155.14487318,0.00035786,7]
[315007698,1708727454790,-4895.78,0.00035798,2]
[315007699,1708727454802,-150.61156201,0.00035867,7]
[315007700,1708727454814,-5800.0,0.0003589,2]
[315007701,1708727454825,-4350.80044633,0.0003589,2]
[315007702,1708727454838,-2000.0,0.000359,2]
[315007703,1708727454850,-543.93960448,0.00035919,2]
[315007704,1708727454862,-154.02083881,0.00035927,7]
[315007705,1708727454875,-152.54,0.00035978,2]
[315007706,1708727454887,-10000.0,0.00036,4]
[315007707,1708727454898,-168.0,0.00036,2]
[315007708,1708727454908,-150.0,0.00036,7]
[315007709,1708727454918,-150.0,0.00036,7]
[315007710,1708727454928,-150.0,0.00036,7]
[315007711,1708727454939,-150.0,0.00036,7]
[315007712,1708727454951,-150.0,0.00036,7]
[315007713,1708727454963,-150.0,0.00036,7]
[315007714,1708727454974,-150.0,0.00036,7]
[315007715,1708727454985,-150.0,0.00036,7]
[315007716,1708727454998,-349.48,0.00036,2]
[315007717,1708727455009,-5008.16,0.00036055,2]
[315007718,1708727455019,-150.0,0.00036056,7]
[315007719,1708727455030,-1991.36,0.00036091,2]
[315007720,1708727455040,-150.0,0.00036113,7]
[315007721,1708727455051,-155.76031539,0.00036155,7]
[315007722,1708727455062,-154.20563152,0.00036157,7]
[315007723,1708727455072,-150.0,0.0003616,7]
[315007724,1708727455083,-150.0,0.00036169,7]
[315007725,1708727455094,-154.20563152,0.00036178,7]
[315007726,1708727455105,-634.42123249,0.00036186,2]
[315007727,1708727455115,-754.75,0.000362,3]
[315007728,1708727455126,-754.75,0.000362,3]
[315007729,1708727455137,-754.75,0.000362,3]
[315007730,1708727455149,-754.75,0.000362,3]
[315007731,1708727455159,-754.75,0.000362,3]
[315007732,1708727455170,-754.75,0.000362,3]
[315007733,1708727455181,-754.75,0.000362,3]
[315007734,1708727455192,-754.75,0.000362,3]
[315007735,1708727455202,-754.75,0.000362,3]
[315007736,1708727455213,-754.75,0.000362,3]
[315007737,1708727455224,-754.75,0.000362,3]
[315007738,1708727455235,-754.75,0.000362,3]
[315007739,1708727455246,-754.75,0.000362,3]
[315007740,1708727455257,-754.75,0.000362,3]
[315007741,1708727455268,-754.75,0.000362,3]
[315007742,1708727455279,-754.75,0.000362,3]
[315007743,1708727455289,-754.75,0.000362,3]
[315007744,1708727455300,-754.75,0.000362,3]
[315007745,1708727455311,-754.75,0.000362,3]
[315007746,1708727455321,-754.75,0.000362,3]
[315007747,1708727455332,-150.0,0.00036225,7]
[315007748,1708727455342,-154.20563152,0.00036259,7]
[315007749,1708727455354,-150.0,0.00036282,7]
[315007750,1708727455364,-150.0,0.00036286,7]
[315007751,1708727455375,-3481.97,0.000363,7]
[315007752,1708727455386,-2700.05,0.000363,7]
[315007753,1708727455396,-2116.86101888,0.00036301,30]
[315007754,1708727455407,-150.0,0.0003632,7]
[315007755,1708727455418,-150.0,0.00036337,2]
[315007756,1708727455429,-150.0,0.00036338,7]
[315007757,1708727455440,-157.0,0.0003636,7]
[315007758,1708727455452,-157.51738774,0.00036369,7]
[315007759,1708727455464,-349.20597754,0.00036372,2]
[315007760,1708727455475,-173.17724569,0.00036372,2]
[315007761,1708727455486,-150.0,0.00036394,7]
[315007762,1708727455497,-151.0,0.00036406,2]
[315007763,1708727455508,-154.20563152,0.00036439,7]
[315007764,1708727455518,-150.0,0.00036444,7]
[315007765,1708727455530,-150.0,0.00036451,7]
[315007766,1708727455540,-150.0,0.0003648,7]
[315007767,1708727455551,-153.83967241,0.00036498,2]
[315007768,1708727455561,-150.0,0.000365,7]
[315007769,1708727455572,-150.0,0.00036507,7]
[315007770,1708727455583,-1000.0,0.0003655,2]
[315007771,1708727455594,-150.0,0.00036563,7]
[315007772,1708727455604,-150.0,0.00036571,7]
[315007773,1708727455615,-150.0,0.0003662,7]
[315007774,1708727455625,-160.49481862,0.00036626,7]
[315007775,1708727455636,-150.0,0.0003664,7]
[315007776,1708727455647,-154.20563152,0.00036643,7]
[315007777,1708727455657,-154.20563152,0.0003667,7]
[315007778,1708727455667,-150.0,0.00036676,7]
[315007779,1708727455678,-154.20563152,0.00036691,7]
[315007780,1708727455689,-150.0,0.00036732,7]
[315007781,1708727455700,-5881.83884464,0.00036777,2]
[315007782,1708727455711,-150.0,0.00036789,7]
[315007783,1708727455721,-150.0,0.000368,7]
[315007784,1708727455732,-150.61156201,0.00036819,7]
[315007785,1708727455742,-856.13982141,0.00036821,8]
[315007786,1708727455753,-150.0,0.00036845,7]
[315007787,1708727455763,-150.0,0.00036857,7]
[315007788,1708727455774,-156.57354394,0.00036885,7]
[315007789,1708727455784,-150.0,0.00036889,7]
[315007790,1708727455795,-3481.97,0.000369,7]
[315007791,1708727455806,-2700.05,0.000369,7]
[315007792,1708727455817,-150.0,0.00036901,7]
[315007793,1708727455828,-150.0,0.00036958,7]
[315007794,1708727455838,-150.0,0.0003696,7]
[315007795,1708727455849,-500.0,0.00036985,10]
[315007796,1708727455859,-666.0,0.00036986,2]
[315007797,1708727455869,-520.1036469,0.00037,12]
[315007798,1708727455880,-150.0,0.00037,7]
[315007799,1708727455890,-200.0,0.00037,10]
[315007800,1708727455901,-150.0,0.00037,7]
[315007801,1708727455911,-1503.24117631,0.00037,2]
[315007802,1708727455922,-150.0,0.00037014,7]
[315007803,1708727455933,-154.20563152,0.00037027,7]
[315007804,1708727455943,-156.57354396,0.00037028,7]
[315007805,1708727455953,-150.0,0.0003707,7]
[315007806,1708727455964,-4895.78,0.00037075,2]
[315007807,1708727455974,-150.0,0.0003712,7]
[315007808,1708727455985,-150.0,0.00037127,7]
[315007809,1708727455995,-150.0,0.00037143,7]
[315007810,1708727456006,-154.20563152,0.0003715,7]
[315007811,1708727456017,-817.0,0.00037161,2]
[315007812,1708727456027,-3760.95850385,0.00037171,10]
[315007813,1708727456038,-154.20563152,0.00037182,7]
[315007814,1708727456048,-150.0,0.00037183,7]
[315007815,1708727456059,-150.0,0.00037203,2]
[315007816,1708727456069,-682.65,0.0003722,2]
[315007817,1708727456080,-150.0,0.00037239,7]
[315007818,1708727456090,-150.0,0.0003728,7]
[315007819,1708727456101,-150.0,0.00037296,7]
[315007820,1708727456112,-157.51738774,0.00037327,7]
[315007821,1708727456122,-150.0,0.00037333,7]
[315007822,1708727456134,-150.0,0.00037333,7]
[315007823,1708727456144,-150.0,0.00037352,7]
[315007824,1708727456154,-150.61156201,0.00037395,7]
[315007825,1708727456165,-150.0,0.00037408,7]
[315007826,1708727456175,-150.0,0.00037429,7]
[315007827,1708727456186,-150.0,0.0003744,7]
[315007828,1708727456197,-177.595393,0.00037442,2]
[315007829,1708727456208,-150.52,0.00037443,2]
[315007830,1708727456220,-158.44336474,0.00037445,7]
[315007831,1708727456231,-150.0,0.00037465,7]
[315007832,1708727456242,-150.0,0.000375,7]
[315007833,1708727456253,-3481.97,0.000375,7]
[315007834,1708727456265,-2700.05,0.000375,7]
[315007835,1708727456277,-1500.0,0.00037509,2]
[315007836,1708727456290,-160.49481862,0.00037514,7]
[315007837,1708727456302,-150.61156201,0.00037515,7]
[315007838,1708727456313,-150.0,0.00037521,7]
[315007839,1708727456325,-150.0,0.00037577,7]
[315007840,1708727456337,-154.20563152,0.00037597,7]
[315007841,1708727456349,-754.75,0.000376,3]
[315007842,1708727456360,-754.75,0.000376,3]
[315007843,1708727456372,-754.75,0.000376,3]
[315007844,1708727456384,-754.75,0.000376,3]
[315007845,1708727456395,-754.75,0.000376,3]
[315007846,1708727456406,-754.75,0.000376,3]
[315007847,1708727456417,-754.75,0.000376,3]
[315007848,1708727456428,-754.75,0.000376,3]
[315007849,1708727456439,-754.75,0.000376,3]
[315007850,1708727456453,-754.75,0.000376,3]
[315007851,1708727456464,-754.75,0.000376,3]
[315007852,1708727456475,-754.75,0.000376,3]
[315007853,1708727456486,-754.75,0.000376,3]
[315007854,1708727456717,-754.75,0.000376,3]
[315007855,1708727456767,-754.75,0.000376,3]
[315007856,1708727456784,-754.75,0.000376,3]
[315007857,1708727456798,-754.75,0.000376,3]
[315007858,1708727456808,-754.75,0.000376,3]
[315007859,1708727456817,-754.75,0.000376,3]
[315007860,1708727456826,-754.75,0.000376,3]
[315007861,1708727456835,-150.0,0.000376,7]
[315007862,1708727456845,-150.0,0.00037634,7]
[315007863,1708727456854,-154.20563152,0.00037658,7]
[315007864,1708727456863,-154.20563152,0.00037663,7]
[315007865,1708727456872,-180.0,0.00037671,2]
[315007866,1708727456881,-3107043.56518293,0.00037684,2]
[315007867,1708727456890,-150.0,0.0003769,7]
[315007868,1708727456899,-1390.13,0.00037699,4]
[315007869,1708727456908,-150.0,0.00037699,2]
[315007870,1708727456917,-150.0,0.00037699,2]
[315007871,1708727456926,-198993.46596613,0.000377,4]
[315007872,1708727456935,-150.0,0.00037714,7]
[315007873,1708727456944,-157.0,0.0003773,7]
[315007874,1708727456953,-150.0,0.00037746,7]
[315007875,1708727456962,-150.0,0.0003776,7]
[315007876,1708727456971,-159.39088987,0.00037768,7]
[315007877,1708727456980,-150.0,0.00037778,7]
[315007878,1708727456990,-150.0,0.00037803,7]
[315007879,1708727456999,-150.0,0.00037859,7]
[315007880,1708727457008,-204.0,0.00037865,14]
[315007881,1708727457017,-1390.13,0.00037899,4]
[315007882,1708727457027,-1390.13,0.00037899,4]
[315007883,1708727457037,-1390.13,0.00037899,4]
[315007884,1708727457046,-677918.978439,0.000379,3]
[315007885,1708727457055,-150.0,0.00037915,7]
[315007886,1708727457064,-150.0,0.0003792,7]
[315007887,1708727457073,-150.0,0.00037972,7]
[315007888,1708727457082,-163.09927512,0.00037989,3]
[315007889,1708727457092,-150.61156201,0.00037989,7]
[315007890,1708727457101,-200.0,0.00038,11]
[315007891,1708727457110,-350.0,0.00038,14]
[315007892,1708727457118,-150.0,0.00038,7]
[315007893,1708727457128,-150.0,0.00038,7]
[315007894,1708727457137,-150.0,0.00038,7]
[315007895,1708727457146,-225.0,0.00038,2]
[315007896,1708727457154,-150.0,0.00038028,7]
[315007897,1708727457163,-150.0,0.00038068,2]
[315007898,1708727457173,-150.0,0.0003808,7]
[315007899,1708727457182,-500.0,0.00038081,10]
[315007900,1708727457191,-150.0,0.00038085,7]
[315007901,1708727457200,-3481.97,0.000381,7]
[315007902,1708727457210,-2700.05,0.000381,7]
[315007903,1708727457219,-163.33,0.000381,2]
[315007904,1708727457229,-154.20563152,0.00038118,7]
[315007905,1708727457238,-3078.12408554,0.00038123,10]
[315007906,1708727457248,-3078.12408553,0.00038123,10]
[315007907,1708727457257,-3078.12408553,0.00038123,10]
[315007908,1708727457267,-3078.12408553,0.00038123,10]
[315007909,1708727457276,-150.0,0.00038141,7]
[315007910,1708727457287,-5017.79,0.00038142,7]
[315007911,1708727457296,-5017.79,0.00038142,7]
[315007912,1708727457305,-5017.79,0.00038142,7]
[315007913,1708727457315,-5017.79,0.00038142,7]
[315007914,1708727457325,-154.20563152,0.00038193,7]
[315007915,1708727457334,-150.0,0.00038197,7]
[315007916,1708727457343,-150.0,0.00038222,7]
[315007917,1708727457353,-1362.85158378,0.00038238,2]
[315007918,1708727457362,-150.0,0.0003824,7]
[315007919,1708727457371,-1630.71742168,0.0003825,30]
[315007920,1708727457380,-150.0,0.00038254,7]
[315007921,1708727457389,-150.0,0.00038286,7]
[315007922,1708727457399,-150.0,0.0003831,7]
[315007923,1708727457408,-157.51738774,0.00038319,7]
[315007924,1708727457417,-4895.78,0.00038352,2]
[315007925,1708727457426,-150.22,0.00038356,2]
[315007926,1708727457436,-3487.34,0.00038356,15]
[315007927,1708727457446,-150.0,0.00038366,7]
[315007928,1708727457457,-150.0,0.000384,7]
[315007929,1708727457466,-1362.85158378,0.00038411,2]
[315007930,1708727457475,-154.98329938,0.00038415,7]
[315007931,1708727457484,-5017.79,0.00038415,7]
[315007932,1708727457493,-5017.79,0.00038415,7]
[315007933,1708727457530,-150.0,0.00038423,7]
[315007934,1708727457539,-150.0,0.00038479,7]
[315007935,1708727457548,-1750.001001,0.0003849,21]
[315007936,1708727457557,-150.0,0.000385,7]
[315007937,1708727457566,-150.0,0.00038535,7]
[315007938,1708727457575,-150.0,0.0003856,7]
[315007939,1708727457585,-159.39088987,0.00038563,7]
[315007940,1708727457593,-150.0,0.00038571,7]
[315007941,1708727457602,-150.0,0.00038592,7]
[315007942,1708727457612,-3760.95850385,0.00038596,12]
[315007943,1708727457621,-2000.0,0.000386,2]
[315007944,1708727457630,-225.0,0.0003863,14]
[315007945,1708727457639,-150.62,0.0003863,2]
[315007946,1708727457648,-359.94,0.0003863,2]
[315007947,1708727457658,-153.47,0.0003863,2]
[315007948,1708727457667,-157.51738774,0.00038641,7]
[315007949,1708727457676,-1362.85158378,0.00038646,2]
[315007950,1708727457685,-150.0,0.00038648,7]
[315007951,1708727457696,-154.20563152,0.00038654,7]
[315007952,1708727457705,-2925.2538,0.00038664,2]
[315007953,1708727457714,-739.0699,0.00038664,2]
[315007954,1708727457723,-12654.6111,0.00038664,3]
[315007955,1708727457733,-150.0,0.00038667,7]
[315007956,1708727457742,-150.0,0.00038667,7]
[315007957,1708727457751,-5017.79,0.00038689,7]
[315007958,1708727457760,-5017.79,0.00038689,7]
[315007959,1708727457770,-160.49481862,0.00038692,7]
[315007960,1708727457780,-3481.97,0.000387,7]
[315007961,1708727457790,-2700.05,0.000387,7]
[315007962,1708727457799,-150.0,0.00038704,7]
[315007963,1708727457808,-150.0,0.0003872,7]
[315007964,1708727457822,-150.0,0.00038761,7]
[315007965,1708727457832,-154.20563152,0.00038761,7]
[315007966,1708727457841,-6892.55022949,0.00038764,2]
[315007967,1708727457851,-5881.83884464,0.00038808,2]
[315007968,1708727457860,-154.20563152,0.0003881,7]
[315007969,1708727457869,-150.0,0.00038817,7]
[315007970,1708727457879,-160.49481865,0.0003883,7]
[315007971,1708727457889,-1784.00228163,0.0003883,35]
[315007972,1708727457899,-150.61156201,0.00038833,7]
[315007973,1708727457908,-154.2056316,0.00038853,7]
[315007974,1708727457918,-150.0,0.00038857,7]
[315007975,1708727457927,-856.13982141,0.0003886,9]
[315007976,1708727457936,-150.0,0.00038873,7]
[315007977,1708727457946,-150.0,0.0003888,7]
[315007978,1708727457955,-150.0,0.00038882,2]
[315007979,1708727457965,-152.0,0.000389,7]
[315007980,1708727457974,-150.0,0.0003893,7]
[315007981,1708727457983,-150.0,0.00038931,2]
[315007982,1708727457993,-150.0,0.00038933,2]
[315007983,1708727458002,-5017.79,0.00038962,7]
[315007984,1708727458011,-5017.79,0.00038962,7]
[315007985,1708727458020,-4788.032666,0.00038986,30]
[315007986,1708727458031,-150.0,0.00038986,7]
[315007987,1708727458040,-709.73888048,0.00038994,30]
[315007988,1708727458049,-200.0,0.00039,12]
[315007989,1708727458059,-250.0,0.00039,2]
[315007990,1708727458068,-350.0,0.00039,16]
[315007991,1708727458077,-153.75,0.00039,3]
[315007992,1708727458087,-153.75,0.00039,3]
[315007993,1708727458096,-153.75,0.00039,3]
[315007994,1708727458105,-153.75,0.00039,3]
[315007995,1708727458114,-153.75,0.00039,3]
[315007996,1708727458124,-153.75,0.00039,3]
[315007997,1708727458134,-153.75,0.00039,3]
[315007998,1708727458144,-310.0,0.00039,2]
[315007999,1708727458153,-500.0,0.00039,2]
[315008000,1708727458162,-150.0,0.00039,7]
[315008001,1708727458172,-150.0,0.00039,7]
[315008002,1708727458181,-754.75,0.00039,3]
[315008003,1708727458191,-754.75,0.00039,3]
[315008004,1708727458201,-754.75,0.00039,3]
[315008005,1708727458211,-754.75,0.00039,3]
[315008006,1708727458221,-754.75,0.00039,3]
[315008007,1708727458231,-754.75,0.00039,3]
[315008008,1708727458241,-754.75,0.00039,3]
[315008009,1708727458251,-754.75,0.00039,3]
[315008010,1708727458260,-754.75,0.00039,3]
[315008011,1708727458271,-754.75,0.00039,3]
[315008012,1708727458281,-754.75,0.00039,3]
[315008013,1708727458290,-754.75,0.00039,3]
[315008014,1708727458300,-754.75,0.00039,3]
[315008015,1708727458309,-754.75,0.00039,3]
[315008016,1708727458319,-754.75,0.00039,3]
[315008017,1708727458329,-754.75,0.00039,3]
[315008018,1708727458339,-754.75,0.00039,3]
[315008019,1708727458348,-754.75,0.00039,3]
[315008020,1708727458359,-754.75,0.00039,3]
[315008021,1708727458369,-754.75,0.00039,3]
[315008022,1708727458379,-295.712182,0.00039002,30]
[315008023,1708727458389,-295.712182,0.00039009,30]
[315008024,1708727458398,-709.73888048,0.00039012,30]
[315008025,1708727458408,-709.73888048,0.00039024,30]
[315008026,1708727458418,-150.0,0.0003904,7]
[315008027,1708727458427,-150.0,0.00039042,7]
[315008028,1708727458437,-150.61156202,0.00039049,7]
[315008029,1708727458447,-4788.032666,0.00039061,30]
[315008030,1708727458458,-4788.032666,0.00039061,30]
[315008031,1708727458468,-923.94035597,0.00039068,30]
[315008032,1708727458478,-750.0,0.0003907,2]
[315008033,1708727458487,-1390.13,0.00039071,4]
[315008034,1708727458498,-1390.13,0.00039071,4]
[315008035,1708727458508,-1390.13,0.00039071,4]
[315008036,1708727458518,-1390.13,0.00039071,4]
[315008037,1708727458529,-1390.13,0.00039071,4]
[315008038,1708727458542,-1390.13,0.00039071,4]
[315008039,1708727458552,-1390.13,0.00039071,4]
[315008040,1708727458564,-279.40690622,0.00039071,2]
[315008041,1708727458574,-209.04791568,0.00039071,2]
[315008042,1708727458584,-500.0,0.00039072,4]
[315008043,1708727458595,-500.0,0.00039072,4]
[315008044,1708727458605,-503.16235639,0.00039072,4]
[315008045,1708727458616,-534.39774955,0.00039072,4]
[315008046,1708727458627,-500.0,0.00039072,4]
[315008047,1708727458637,-500.0,0.00039072,4]
[315008048,1708727458648,-500.0,0.00039072,4]
[315008049,1708727458658,-500.0,0.00039072,4]
[315008050,1708727458668,-500.0,0.00039072,4]
[315008051,1708727458678,-500.0,0.00039072,4]
[315008052,1708727458687,-509.10718144,0.00039072,4]
[315008053,1708727458698,-506.63427858,0.00039072,4]
[315008054,1708727458708,-539.97516472,0.00039072,4]
[315008055,1708727458717,-502.32025382,0.00039072,4]
[315008056,1708727458726,-500.0,0.00039072,4]
[315008057,1708727458736,-500.0,0.00039072,4]
[315008058,1708727458744,-500.0,0.00039072,4]
[315008059,1708727458753,-504.03844269,0.00039072,4]
[315008060,1708727458763,-500.0,0.00039072,4]
[315008061,1708727458772,-500.0,0.00039072,4]
[315008062,1708727458783,-500.0,0.00039072,4]
[315008063,1708727458793,-500.0,0.00039072,4]
[315008064,1708727458802,-500.0,0.00039072,4]
[315008065,1708727458812,-500.0,0.00039072,4]
[315008066,1708727458821,-500.0,0.00039072,4]
[315008067,1708727458831,-509.64240669,0.00039072,4]
[315008068,1708727458840,-500.0,0.00039072,4]
[315008069,1708727458850,-500.0,0.00039072,4]
[315008070,1708727458860,-500.0,0.00039072,4]
[315008071,1708727458869,-520.30378695,0.00039072,4]
[315008072,1708727458879,-500.0,0.00039072,4]
[315008073,1708727458889,-500.0,0.00039072,4]
[315008074,1708727458902,-500.0,0.00039072,4]
[315008075,1708727458912,-500.0,0.00039072,4]
[315008076,1708727458922,-500.0,0.00039072,4]
[315008077,1708727458932,-500.0,0.00039072,4]
[315008078,1708727458941,-500.0,0.00039072,4]
[315008079,1708727458951,-500.0,0.00039072,4]
[315008080,1708727458960,-500.0,0.00039072,4]
[315008081,1708727458970,-500.0,0.00039072,4]
[315008082,1708727458979,-500.0,0.00039072,4]
[315008083,1708727458989,-500.0,0.00039072,4]
[315008084,1708727458999,-500.0,0.00039072,4]
[315008085,1708727459008,-500.0,0.00039072,4]
[315008086,1708727459018,-500.0,0.00039072,4]
[315008087,1708727459028,-500.0,0.00039072,4]
[315008088,1708727459040,-500.0,0.00039072,4]
[315008089,1708727459049,-505.3721254,0.00039072,4]
[315008090,1708727459059,-500.0,0.00039072,4]
[315008091,1708727459068,-500.0,0.00039072,4]